bitfinex-derivatives/quotes_ETHF0:USTF0_20260310
["timestamp","ask_amount","ask_price","bid_price","bid_amount"]
[1773158528192,3.24954601,2075.7,2074.9,3.15920957]
[1773158528589,3.25496075,2076.0,2074.9,3.15920957]
[1773158528989,3.24968159,2076.4,2074.9,3.15920957]
[1773158530093,3.25370369,2076.4,2074.9,3.15920957]
[1773158532197,3.28821368,2076.3,2074.9,3.15920957]
[1773158532492,3.28821368,2075.7,2074.9,0.00446826]
[1773158532698,3.28821368,2075.5,2074.6,3.15474131]
[1773158533698,3.28821368,2075.4,2074.6,3.1596843]
[1773158534204,3.28821368,2075.6,2074.6,3.1596843]
[1773158534887,3.28821368,2076.0,2074.8,3.15474131]
[1773158539500,3.27124367,2075.9,2074.8,3.15474131]
[1773158540096,3.27124367,2076.2,2074.8,3.15474131]
[1773158540403,3.27124367,2076.2,2074.8,3.39565131]
[1773158540698,3.27124367,2076.2,2075.1,3.0859624]
[1773158541698,3.27526577,2076.4,2075.3,3.0859624]
[1773158542904,3.51600577,2076.4,2075.3,3.0859624]
[1773158544500,3.51600577,2076.4,2074.8,3.0859624]
[1773158544997,3.27124367,2075.9,2074.7,3.0859624]
[1773158546100,3.27124367,2075.9,2074.9,3.0859624]
[1773158546909,3.27124367,2076.3,2075.1,3.0859624]
[1773158550607,3.27124367,2076.2,2075.1,3.0859624]
[1773158553001,0.0040221,2076.4,2075.3,3.0859624]
[1773158553206,3.27526577,2076.4,2075.5,3.0859624]
[1773158553406,0.0040221,2076.4,2075.5,3.0859624]
[1773158553707,3.27526577,2076.4,2075.5,3.0859624]
[1773158556507,0.0040221,2076.4,2075.5,3.3268024]
[1773158559411,9.58124367,2077.0,2076.0,3.0859624]
[1773158559617,3.27124367,2077.0,2076.0,3.0859624]
[1773158560513,3.27482795,2077.0,2076.0,3.0859624]
[1773158561318,0.00358428,2077.0,2076.0,3.0859624]
[1773158562214,6.04451895,2078.3,2077.2,3.0859624]
[1773158562410,7.55564869,2078.5,2076.7,5.92137]
[1773158562411,3.27124367,2078.5,2077.4,3.0859624]
[1773158563316,3.27573306,2078.5,2077.4,3.08953392]
[1773158566620,3.27573306,2078.5,2077.5,3.0859624]
[1773158567620,3.21290048,2078.1,2077.4,0.00357152]
[1773158568422,3.21290048,2078.1,2077.1,3.40856339]
[1773158569527,3.21290048,2078.1,2077.1,3.41224796]
[1773158570120,3.33950822,2077.9,2077.1,3.41224796]
[1773158572424,3.33950822,2077.7,2076.7,3.29882648]
[1773158573524,3.33950822,2077.7,2076.7,3.30324184]
[1773158574021,3.33950822,2077.7,2076.9,3.29882648]
[1773158576133,3.58007822,2077.9,2076.9,3.29882648]
[1773158576738,3.33950822,2077.9,2076.9,3.29882648]
[1773158577232,3.33950822,2077.9,2077.0,3.29882648]
[1773158580437,0.24057,2077.8,2077.0,3.29882648]
[1773158580633,3.33950822,2077.7,2077.0,3.29882648]
[1773158580839,3.33950822,2077.7,2076.8,3.29882648]
[1773158581135,3.33950822,2077.3,2076.7,0.00441536]
[1773158581537,3.33950822,2077.3,2076.4,9.60482648]
[1773158581842,3.33950822,2076.9,2076.0,3.29882648]
[1773158582037,3.33950822,2076.5,2076.0,3.29882648]
[1773158582541,3.34345244,2076.5,2076.0,3.30265993]
[1773158582737,0.00394422,2076.5,2076.0,3.30265993]
[1773158583942,3.34345244,2076.5,2076.0,3.30265993]
[1773158584545,3.33950822,2076.9,2076.0,3.30265993]
[1773158585538,3.3457576,2076.9,2076.0,3.30265993]
[1773158586639,0.00624938,2076.9,2076.0,3.30265993]
[1773158586834,3.3457576,2076.9,2076.0,3.30265993]
[1773158593943,3.33950822,2076.7,2076.0,0.00383345]
[1773158594149,3.33950822,2076.5,2075.6,3.29882648]
[1773158594351,3.33950822,2076.3,2075.6,3.29882648]
[1773158594546,3.33950822,2076.3,2074.8,9.95741712]
[1773158594547,3.33950822,2076.1,2075.3,3.29882648]
[1773158595449,3.33950822,2075.9,2075.3,0.00595127]
[1773158598345,3.33950822,2075.9,2074.9,3.29882648]
[1773158599243,3.3460715,2076.4,2074.9,3.54548273]
[1773158599444,3.3460715,2076.3,2074.9,3.54548273]
[1773158601350,0.2407,2076.8,2075.4,3.35510131]
[1773158601351,3.3460715,2076.7,2075.4,3.35510131]
[1773158601546,3.3460715,2076.7,2075.6,3.35510131]
[1773158601750,3.3460715,2076.7,2075.8,3.35510131]
[1773158602151,3.59300088,2076.9,2075.8,3.35510131]
[1773158604757,3.17556201,2076.6,2075.7,6.31]
[1773158604952,0.2407,2076.7,2075.0,0.24089]
[1773158604953,3.17556201,2076.2,2075.2,3.27293457]
[1773158605555,3.17556201,2076.0,2075.2,3.27293457]
[1773158606059,3.17556201,2076.2,2075.2,3.27293457]
[1773158607355,3.17556201,2076.2,2075.2,3.27293457]
[1773158607661,3.17556201,2076.6,2075.4,3.27293457]
[1773158608552,3.17556201,2076.6,2075.5,6.31]
[1773158608855,3.17556201,2076.6,2075.6,3.27293457]
[1773158610260,3.17556201,2076.6,2075.3,7.70892284]
[1773158610261,3.17556201,2076.4,2075.4,3.27293457]
[1773158610856,3.17556201,2076.2,2075.4,3.27293457]
[1773158612753,0.2407,2076.8,2075.4,3.27293457]
[1773158612754,3.17556201,2076.5,2075.4,3.27293457]
[1773158615767,3.17556201,2076.5,2075.5,3.27293457]
[1773158620371,3.17556201,2076.7,2075.6,3.27293457]
[1773158620573,0.00624938,2076.9,2075.5,7.46806284]
[1773158620574,3.18181139,2076.9,2075.9,3.27293457]
[1773158620774,3.18181139,2076.9,2075.8,7.46806284]
[1773158620775,4.63930112,2077.0,2076.3,3.27293457]
[1773158621075,4.63930112,2077.0,2076.1,7.46806284]
[1773158621076,1.593063,2077.0,2076.5,3.27293457]
[1773158621269,3.17556201,2077.5,2076.7,3.27293457]
[1773158621770,0.00614837,2077.5,2076.7,3.27785232]
[1773158622276,3.18171038,2077.5,2076.7,3.27785232]
[1773158624070,0.00614837,2077.5,2076.7,3.27785232]
[1773158624372,3.18171038,2077.5,2076.7,3.27785232]
[1773158625968,3.18171038,2077.5,2076.7,0.00491775]
[1773158626170,3.18171038,2077.5,2076.7,2.56428093]
[1773158626876,3.18171038,2077.5,2076.7,0.00491775]
[1773158628369,3.50046187,2077.3,2076.0,9.98097433]
[1773158628570,3.50046187,2077.1,2075.9,6.308]
[1773158629475,3.50046187,2077.1,2075.9,8.82430354]
[1773158629678,3.49555817,2076.9,2076.0,2.5717051]
[1773158630269,3.49555817,2076.9,2075.9,6.31411132]
[1773158630875,3.49555817,2076.9,2075.9,0.00611132]
[1773158631072,3.49555817,2076.7,2075.9,0.00611132]
[1773158631473,3.49555817,2076.7,2075.9,2.5786425]
[1773158632969,3.49555817,2077.2,2076.1,2.58999664]
[1773158636075,3.49555817,2077.2,2076.0,6.308]
[1773158636076,3.49555817,2077.2,2076.3,2.60775213]
[1773158640492,3.49555817,2077.2,2076.0,8.8999539]
[1773158641095,0.24675837,2077.5,2075.9,0.00611132]
[1773158641096,3.49555817,2077.0,2075.9,0.00611132]
[1773158641389,3.49555817,2077.0,2075.9,2.59658675]
[1773158641894,3.49555817,2077.0,2076.0,2.5850443]
[1773158642088,3.49555817,2077.0,2076.2,2.5850443]
[1773158644594,3.49555817,2077.0,2076.0,8.86516743]
[1773158644795,3.49555817,2077.0,2075.9,0.00611132]
[1773158645191,3.49555817,2076.8,2075.9,0.00611132]
[1773158645385,10.73761,2077.0,2075.9,0.00611132]
[1773158645386,3.49555817,2076.6,2075.9,0.00611132]
[1773158645586,3.49555817,2076.6,2075.4,8.86330959]
[1773158645789,3.49555817,2076.6,2075.5,2.5558933]
[1773158646593,3.49555817,2076.6,2075.5,2.56192161]
[1773158648496,3.49555817,2076.6,2075.6,2.55574605]
[1773158649793,3.49555817,2077.3,2075.8,2.77926928]
[1773158649997,3.49555817,2077.3,2076.0,2.53845928]
[1773158650197,3.49555817,2077.3,2076.2,2.53653168]
[1773158650595,3.49555817,2077.3,2076.3,2.53687895]
[1773158651399,3.49555817,2077.3,2076.4,2.5349497]
[1773158652501,3.49555817,2077.3,2076.5,2.53890722]
[1773158652695,3.49555817,2077.3,2076.6,6.309]
[1773158653596,3.49555817,2077.3,2076.4,7.46776506]
[1773158653798,3.49555817,2077.3,2076.3,16.31302731]
[1773158653997,3.49555817,2077.3,2076.4,2.51894652]
[1773158655099,3.49555817,2077.3,2076.5,2.5153057]
[1773158655296,3.49555817,2077.3,2076.5,7.46776506]
[1773158655493,3.49555817,2077.3,2076.4,9.98307076]
[1773158656094,3.49555817,2077.3,2076.5,2.49202016]
[1773158657806,3.49555817,2077.3,2076.4,9.95794677]
[1773158658306,3.49555817,2077.3,2076.4,7.46776506]
[1773158658704,3.49555817,2077.3,2076.4,9.95628035]
[1773158659707,3.49555817,2077.3,2076.5,2.48420864]
[1773158660704,3.49555817,2077.3,2076.4,9.95364377]
[1773158661000,3.49555817,2077.3,2076.5,2.48587871]
[1773158661397,3.49555817,2077.3,2076.6,2.48378231]
[1773158661901,3.49555817,2077.3,2076.8,2.47815308]
[1773158662302,3.48771706,2078.6,2077.4,2.47604385]
[1773158662502,0.24042,2079.2,2077.5,2.47604385]
[1773158662503,3.48771706,2078.4,2077.5,2.47604385]
[1773158662703,3.48771706,2078.4,2077.5,6.308]
[1773158663406,3.49236104,2078.4,2077.6,2.4743021]
[1773158666706,3.49236104,2078.4,2077.5,0.00452306]
[1773158667602,3.48771706,2078.0,2077.1,6.307]
[1773158668003,3.48771706,2077.8,2077.1,6.307]
[1773158668203,3.48771706,2077.6,2076.6,6.306]
[1773158668402,3.48771706,2077.4,2076.3,2.25040421]
[1773158668608,3.48771706,2077.4,2076.3,2.25458271]
[1773158670619,3.48771706,2077.4,2076.5,2.24289252]
[1773158670810,3.48771706,2077.4,2076.7,2.24289252]
[1773158671010,3.48771706,2077.4,2076.6,6.306]
[1773158671810,3.48771706,2077.4,2076.5,6.306]
[1773158672807,3.48771706,2077.4,2076.5,8.54847128]
[1773158673012,3.48771706,2077.4,2076.3,2.24664978]
[1773158674506,3.48771706,2077.2,2076.3,0.0041785]
[1773158675110,3.48771706,2077.0,2075.8,6.307]
[1773158675510,3.48771706,2077.0,2075.9,2.30064955]
[1773158676010,3.48771706,2077.0,2075.9,2.30483691]
[1773158676405,3.48771706,2076.8,2075.9,0.00418736]
[1773158676611,3.49312104,2076.8,2075.9,0.00418736]
[1773158676812,3.48771706,2076.4,2075.5,6.307]
[1773158677210,3.48771706,2076.2,2075.2,6.307]
[1773158677517,3.48771706,2076.2,2075.3,2.30155714]
[1773158678012,3.48771706,2076.2,2075.3,2.30663059]
[1773158679013,3.48771706,2076.7,2075.3,2.30663059]
[1773158680721,3.48771706,2076.7,2075.5,2.33513866]
[1773158681716,3.48771706,2076.7,2075.7,2.33404651]
[1773158682117,3.48771706,2076.7,2075.6,6.308]
[1773158682321,3.48771706,2076.7,2075.6,8.64367763]
[1773158683820,3.48771706,2076.7,2075.7,2.33425166]
[1773158684919,3.48771706,2076.7,2075.6,6.308]
[1773158685317,3.48771706,2076.7,2075.6,8.64507197]
[1773158685924,0.24071,2076.6,2075.6,8.64507197]
[1773158686120,3.48771706,2076.3,2075.4,2.33373569]
[1773158686925,3.38457314,2075.9,2075.3,0.00507345]
[1773158687115,0.24078,2076.0,2074.8,8.65144029]
[1773158687116,3.38457314,2075.7,2074.8,8.65144029]
[1773158687319,3.38457314,2075.7,2074.8,6.309]
[1773158687824,3.38457314,2075.7,2074.6,2.34387135]
[1773158688026,3.38457314,2075.5,2074.6,0.00551357]
[1773158688220,3.38457314,2075.3,2074.6,0.00551357]
[1773158688415,3.38846055,2075.3,2074.6,0.00551357]
[1773158689427,3.3743387,2075.1,2073.9,2.34622917]
[1773158690629,3.3743387,2075.1,2073.9,2.35186553]
[1773158691519,0.00388741,2075.3,2074.1,2.45695559]
[1773158691718,3.37822611,2075.3,2074.1,2.45695559]
[1773158691924,3.37822611,2075.3,2074.3,2.46063127]
[1773158693329,0.00388741,2075.3,2074.5,2.46313077]
[1773158694028,3.3743387,2075.7,2074.7,2.46163001]
[1773158694227,3.3743387,2075.7,2074.8,8.77299599]
[1773158694421,3.3743387,2075.7,2074.9,2.46299599]
[1773158695128,3.37876804,2075.7,2074.9,2.46299599]
[1773158695337,3.37876804,2075.7,2074.8,6.31]
[1773158695932,3.37876804,2075.7,2074.9,2.46205485]
[1773158701039,3.3743387,2075.9,2074.9,2.46205485]
[1773158701634,3.6151387,2075.9,2074.6,2.47369292]
[1773158701938,3.3743387,2075.6,2074.6,2.47369292]
[1773158702137,3.38024311,2075.6,2074.6,2.47369292]
[1773158702332,3.3743387,2075.4,2074.3,2.47492701]
[1773158702533,3.3743387,2075.2,2074.1,8.78492701]
[1773158702838,3.3743387,2075.2,2074.2,2.47468957]
[1773158703238,3.3743387,2075.2,2074.1,6.31]
[1773158703431,3.3743387,2075.2,2074.2,2.47591917]
[1773158705334,3.3743387,2075.5,2074.3,2.45070425]
[1773158705633,3.3743387,2075.3,2074.0,7.46776506]
[1773158705838,3.3743387,2075.1,2074.0,2.43957866]
[1773158706944,3.3743387,2075.1,2074.1,2.44051644]
[1773158708238,3.3743387,2075.1,2074.1,9.9082815]
[1773158708439,3.3743387,2075.1,2074.2,9.96208583]
[1773158708742,3.3743387,2075.1,2074.3,2.49432077]
[1773158709039,3.3743387,2075.1,2074.5,2.49410585]
[1773158709342,3.3743387,2075.5,2074.5,2.49410585]
[1773158710735,3.3743387,2075.3,2074.3,7.46776506]
[1773158710932,3.3743387,2075.3,2074.1,7.46776506]
[1773158711137,3.3743387,2075.1,2074.0,6.311]
[1773158711332,3.3743387,2075.1,2073.9,7.47340142]
[1773158711534,3.3743387,2074.7,2073.9,0.00563636]
[1773158712139,3.3743387,2074.7,2073.9,2.44695525]
[1773158713138,3.3743387,2074.7,2073.9,0.00563636]
[1773158717546,3.3743387,2074.5,2073.6,6.311]
[1773158717741,3.3743387,2074.1,2073.4,6.96561506]
[1773158717941,3.3743387,2073.9,2072.9,2.49324729]
[1773158718141,3.3743387,2073.9,2072.5,3.21263502]
[1773158718343,3.3743387,2073.7,2072.5,3.21656442]
[1773158718745,3.3743387,2073.7,2072.7,3.21263502]
[1773158718944,6.31523755,2073.9,2072.7,3.21263502]
[1773158718945,3.37857625,2073.9,2072.7,3.21263502]
[1773158721646,0.00423755,2073.9,2072.9,3.55388549]
[1773158721849,3.57265191,2073.9,2072.9,3.55388549]
[1773158723746,3.81368191,2073.9,2072.7,3.55388549]
[1773158723946,10.12568191,2073.9,2072.7,3.55388549]
[1773158724146,3.56841436,2073.8,2072.7,3.55388549]
[1773158724346,6.55726755,2073.9,2072.5,0.0039294]
[1773158724347,3.56841436,2073.6,2072.5,0.0039294]
[1773158725349,3.56841436,2073.6,2072.5,3.55781489]
[1773158725849,12.24562755,2073.9,2072.5,3.55781489]
[1773158725850,3.56841436,2073.4,2072.5,3.55781489]
[1773158726351,3.56841436,2073.0,2072.1,3.55388549]
[1773158726952,3.56841436,2073.0,2071.8,6.312]
[1773158726953,3.56841436,2073.0,2071.9,3.55388549]
[1773158727354,3.56841436,2073.0,2071.9,3.55790791]
[1773158727947,0.24112,2073.1,2071.9,0.00402242]
[1773158727948,3.56841436,2072.8,2071.9,0.00402242]
[1773158728647,3.56841436,2072.8,2071.4,6.312]
[1773158728949,3.56841436,2072.8,2071.5,3.55388549]
[1773158729453,3.56841436,2072.6,2071.5,3.55388549]
[1773158729655,3.56841436,2072.6,2071.5,3.55963692]
[1773158732157,3.56841436,2072.6,2071.5,9.87263692]
[1773158732359,3.56841436,2072.6,2071.6,3.55388549]
[1773158732656,3.56841436,2072.6,2071.5,6.31875143]
[1773158732853,3.56841436,2072.4,2071.5,3.55963692]
[1773158733053,3.56841436,2072.0,2070.7,3.55388549]
[1773158733751,3.56841436,2072.0,2070.9,3.55388549]
[1773158733952,3.56841436,2072.0,2070.9,0.00396338]
[1773158734153,3.56841436,2071.8,2070.9,0.00396338]
[1773158734755,3.56841436,2071.6,2070.4,4.38292501]
[1773158734960,3.56841436,2071.4,2070.4,4.38292501]
[1773158735354,3.56841436,2071.4,2070.4,0.82903952]
[1773158735658,3.56841436,2071.2,2069.5,3.55388549]
[1773158735965,3.56841436,2071.1,2069.7,3.55388549]
[1773158736149,3.56841436,2071.1,2069.9,3.55388549]
[1773158736349,3.56841436,2071.1,2070.1,3.55388549]
[1773158736752,3.56841436,2071.6,2070.1,3.55993647]
[1773158737063,3.56841436,2071.6,2070.5,3.55388549]
[1773158737360,3.56841436,2071.6,2070.7,3.55388549]
[1773158737560,3.56841436,2071.6,2070.4,3.55388549]
[1773158740859,3.56841436,2071.4,2070.2,3.55388549]
[1773158741062,3.56841436,2071.2,2070.2,3.55388549]
[1773158741267,3.56841436,2071.1,2070.2,3.55388549]
[1773158742267,3.56841436,2071.1,2070.1,0.00605098]
[1773158742662,3.56841436,2071.1,2070.1,3.55993647]
[1773158742866,3.56841436,2070.9,2070.1,0.00605098]
[1773158743067,3.5741336,2070.9,2070.1,0.00605098]
[1773158743366,3.5741336,2070.9,2070.1,3.55993647]
[1773158745067,0.00571924,2070.9,2070.1,3.55993647]
[1773158745372,3.5741336,2070.9,2070.1,3.55993647]
[1773158745666,3.5741336,2070.9,2070.1,0.00605098]
[1773158745871,3.56841436,2070.7,2070.1,0.00605098]
[1773158746573,3.56841436,2070.7,2069.8,3.55388549]
[1773158747571,3.56841436,2070.7,2069.8,3.55853938]
[1773158747773,3.56841436,2070.7,2069.8,0.00465389]
[1773158748068,3.56841436,2070.7,2069.8,3.35437376]
[1773158748473,3.56841436,2070.7,2069.8,0.00465389]
[1773158748869,3.80982436,2070.7,2069.8,3.35437376]
[1773158749074,3.35869029,2070.6,2069.8,3.35437376]
[1773158749873,3.35869029,2070.6,2069.8,0.00465389]
[1773158750673,3.3892821,2070.3,2068.8,3.00085009]
[1773158751481,3.3893021,2070.1,2068.8,3.00581494]
[1773158751687,3.1478321,2069.9,2068.8,3.00581494]
[1773158752281,3.1478321,2070.2,2069.0,3.00085009]
[1773158752481,3.1478321,2070.0,2069.0,3.00085009]
[1773158752983,6.314,2070.2,2069.0,3.00085009]
[1773158753177,3.1478321,2070.4,2069.0,3.00085009]
[1773158753178,3.1478321,2070.4,2069.1,3.24244009]
[1773158753983,9.4618321,2070.4,2069.1,3.24244009]
[1773158754184,6.314,2070.4,2069.4,3.00085009]
[1773158754388,3.1478321,2070.6,2069.4,3.00085009]
[1773158754780,9.4618321,2070.8,2069.6,3.00085009]
[1773158755484,3.1478321,2070.7,2069.6,3.00085009]
[1773158756483,9.46755134,2070.9,2069.8,3.00085009]
[1773158756683,3.15355134,2070.9,2069.8,3.00085009]
[1773158757875,3.1478321,2070.7,2069.3,3.00085009]
[1773158758075,3.1478321,2070.5,2069.3,3.00085009]
[1773158758285,3.1478321,2070.3,2069.3,3.00085009]
[1773158759581,3.1478321,2070.5,2069.5,3.00085009]
[1773158759786,3.1478321,2070.5,2069.0,5.94331]
[1773158759787,3.1478321,2070.7,2069.7,3.00085009]
[1773158760187,3.1478321,2070.7,2069.9,3.00085009]
[1773158760379,0.00571924,2070.9,2069.9,3.00085009]
[1773158760585,3.15355134,2070.9,2070.1,3.00085009]
[1773158760883,3.15355134,2070.9,2069.6,3.00085009]
[1773158761187,3.1478321,2070.5,2069.4,3.00085009]
[1773158761393,3.1478321,2070.3,2069.2,3.00085009]
[1773158761577,3.1478321,2070.3,2069.0,0.24159]
[1773158761578,3.1478321,2070.1,2069.0,3.00085009]
[1773158761980,6.313,2070.4,2068.8,3.00581494]
[1773158761981,3.1478321,2069.9,2068.8,3.00581494]
[1773158762281,3.1478321,2069.7,2068.8,3.00581494]
[1773158762687,3.1478321,2069.9,2068.8,3.24742494]
[1773158763379,9.4608321,2070.2,2068.8,3.24742494]
[1773158763583,3.1478321,2070.1,2068.8,3.24742494]
[1773158763883,6.313,2070.2,2069.1,3.00085009]
[1773158764281,3.1478321,2070.1,2068.8,0.00496485]
[1773158764483,3.1478321,2070.1,2068.8,3.00581494]
[1773158764891,3.1478321,2069.9,2068.8,3.00581494]
[1773158766786,3.1478321,2069.7,2068.8,0.00496485]
[1773158767585,9.4608321,2069.7,2068.8,3.00581494]
[1773158767989,3.1478321,2069.6,2068.8,3.00581494]
[1773158768584,3.1478321,2070.1,2069.0,3.00085009]
[1773158768785,3.1478321,2070.4,2069.2,3.00085009]
[1773158769092,3.1478321,2070.8,2069.4,3.00085009]
[1773158769294,3.1478321,2070.6,2069.4,3.00085009]
[1773158770486,3.1478321,2070.4,2069.4,3.00085009]
[1773158772192,3.1478321,2070.8,2069.4,3.00085009]
[1773158772394,9.4608321,2070.7,2069.4,3.00085009]
[1773158772595,9.4608321,2070.7,2069.6,3.00085009]
[1773158772797,3.1478321,2070.6,2069.6,3.00085009]
[1773158773191,3.1478321,2070.6,2068.9,22.25252163]
[1773158773192,3.3892521,2070.6,2069.4,3.00085009]
[1773158773398,3.1478321,2070.5,2069.4,3.00085009]
[1773158773596,3.1478321,2070.3,2069.1,3.00085009]
[1773158773894,5.93945,2070.4,2069.1,3.00085009]
[1773158773895,3.1478321,2070.1,2069.1,3.00085009]
[1773158776300,3.1478321,2070.2,2069.1,3.00085009]
[1773158777197,3.98055898,2070.8,2069.1,3.00085009]
[1773158777198,3.1478321,2070.7,2069.1,3.00085009]
[1773158777403,3.1478321,2070.4,2069.4,3.00085009]
[1773158778603,6.313,2070.6,2069.6,3.00085009]
[1773158778800,3.1478321,2070.5,2069.6,3.00085009]
[1773158779496,2.88928435,2070.8,2069.6,3.00085009]
[1773158779804,2.88928435,2070.8,2069.6,3.24237009]
[1773158780298,2.88928435,2070.7,2069.7,2.87220632]
[1773158781096,2.88928435,2070.5,2069.2,2.87220632]
[1773158781302,2.88928435,2070.3,2069.2,2.87220632]
[1773158781604,2.88928435,2070.1,2069.2,2.87220632]
[1773158782008,2.88928435,2070.4,2069.4,2.87220632]
[1773158782807,6.313,2070.5,2069.4,2.87220632]
[1773158783204,2.88928435,2070.4,2069.4,2.87220632]
[1773158784304,2.88928435,2070.4,2069.1,10.32232185]
[1773158784504,2.88928435,2070.2,2069.2,2.87220632]
[1773158784897,2.88928435,2070.2,2069.0,7.45011553]
[1773158785202,2.88928435,2070.2,2069.1,2.87220632]
[1773158787408,0.24145,2070.3,2069.1,2.87220632]
[1773158787409,2.88928435,2070.0,2069.1,2.87220632]
[1773158787603,2.88928435,2069.8,2069.1,2.87220632]
[1773158789308,2.88928435,2069.8,2068.9,2.87220632]
[1773158789808,2.88928435,2070.0,2069.0,2.87220632]
[1773158791110,2.88928435,2070.0,2069.1,2.87220632]
[1773158791507,2.88928435,2070.2,2069.2,2.87220632]
[1773158791809,2.88928435,2070.2,2069.4,2.87220632]
[1773158792010,2.88928435,2070.4,2069.4,2.87220632]
[1773158792210,9.20228435,2070.4,2069.5,2.87220632]
[1773158792606,2.88928435,2070.4,2069.5,3.11373632]
[1773158792807,2.88928435,2070.6,2069.6,2.87220632]
[1773158794410,2.88928435,2070.6,2069.5,7.69164553]
[1773158794411,2.88928435,2070.6,2069.5,7.45011553]
[1773158794610,2.88928435,2070.6,2069.5,2.87220632]
[1773158794908,2.88928435,2070.4,2069.5,2.87220632]
[1773158795503,9.20228435,2070.6,2069.5,2.87220632]
[1773158795810,2.88928435,2070.6,2069.5,2.87220632]
[1773158796011,2.88928435,2070.6,2069.7,2.87220632]
[1773158796212,2.89500359,2070.9,2069.7,2.87220632]
[1773158796913,2.89500359,2070.9,2069.9,2.87220632]
[1773158798516,2.89500359,2070.9,2069.8,10.32232185]
[1773158798711,2.89500359,2070.9,2069.8,2.87220632]
[1773158799816,2.88928435,2070.8,2069.8,2.87220632]
[1773158801617,2.88928435,2070.8,2069.9,2.87220632]
[1773158803416,2.88928435,2070.8,2070.0,2.87220632]
[1773158803611,0.00571924,2070.9,2070.0,2.87220632]
[1773158803817,0.00571924,2070.9,2070.0,10.32232185]
[1773158804013,2.89500359,2070.9,2069.9,2.87220632]
[1773158805719,2.88928435,2070.7,2069.9,2.87220632]
[1773158805923,2.88928435,2070.5,2069.8,2.87220632]
[1773158806117,2.88928435,2070.5,2069.6,10.32232185]
[1773158806520,2.88928435,2070.5,2069.7,2.87220632]
[1773158807225,2.66287493,2070.8,2069.9,2.77723554]
[1773158807418,2.66287493,2070.8,2069.8,10.22735107]
[1773158807620,2.66287493,2070.6,2069.8,2.77723554]
[1773158809027,2.66287493,2070.8,2069.9,2.77723554]
[1773158809825,2.66287493,2070.8,2070.0,2.7510064]
[1773158812324,0.00571924,2070.9,2070.1,2.7510064]
[1773158812919,0.00571924,2070.9,2070.2,2.7510064]
[1773158813126,0.24132,2071.2,2070.2,2.7510064]
[1773158813127,2.68332962,2071.2,2070.2,2.7510064]
[1773158813326,2.68332962,2071.2,2070.3,2.7510064]
[1773158814128,2.68723204,2071.2,2070.3,2.75648257]
[1773158817528,8.99732962,2071.1,2070.3,2.75648257]
[1773158817726,2.68332962,2071.0,2070.3,2.75648257]
[1773158818228,2.68332962,2071.1,2070.3,2.75648257]
[1773158819623,2.68723204,2071.2,2070.4,2.7510064]
[1773158821230,2.68723204,2071.2,2070.5,2.7510064]
[1773158821427,0.00390242,2071.2,2070.5,2.7510064]
[1773158821627,2.68723204,2071.2,2070.4,7.45011553]
[1773158821832,2.92855204,2071.2,2070.3,0.00547617]
[1773158822233,2.92855204,2071.2,2069.8,7.45011553]
[1773158822234,2.68332962,2070.5,2069.8,7.45011553]
[1773158822434,2.68332962,2070.4,2069.5,10.20112193]
[1773158822627,2.68332962,2070.4,2069.6,2.7510064]
[1773158823328,2.68332962,2070.4,2069.6,2.75439471]
[1773158826032,2.68332962,2070.4,2069.7,2.7510064]
[1773158826427,2.68332962,2070.7,2069.7,2.7510064]
[1773158826638,2.68332962,2070.7,2069.8,2.7510064]
[1773158828338,8.99832962,2070.6,2069.8,2.7510064]
[1773158828537,6.315,2070.5,2069.8,2.7510064]
[1773158828738,2.68332962,2070.6,2069.8,2.7510064]
[1773158828937,2.68332962,2071.1,2070.0,2.7510064]
[1773158829140,8.99832962,2071.1,2070.1,2.7510064]
[1773158829343,2.68332962,2071.1,2070.1,2.7510064]
[1773158830038,2.68332962,2071.1,2070.2,2.7510064]
[1773158831836,0.00390242,2071.2,2070.4,2.7510064]
[1773158832038,2.68332962,2071.5,2070.6,2.7510064]
[1773158832235,8.99832962,2071.7,2070.6,2.7510064]
[1773158832437,2.68332962,2071.6,2070.6,2.7510064]
[1773158832737,6.315,2071.9,2070.7,2.7510064]
[1773158832933,2.68332962,2071.8,2070.8,2.7510064]
[1773158833335,0.0040829,2071.9,2070.8,2.7510064]
[1773158833532,2.68741252,2071.9,2070.8,2.7510064]
[1773158833933,2.68741252,2071.9,2070.6,10.20112193]
[1773158833934,2.68332962,2071.7,2070.6,10.20112193]
[1773158834141,2.68332962,2071.7,2070.6,2.7510064]
[1773158834341,2.68332962,2071.5,2070.6,2.7510064]
[1773158835239,2.68332962,2071.3,2070.6,2.7510064]
[1773158835443,2.68332962,2071.5,2070.6,2.7510064]
[1773158836736,2.68332962,2071.1,2069.9,2.7510064]
[1773158836936,2.68332962,2070.9,2069.9,2.7510064]
[1773158837137,2.68332962,2070.7,2069.9,2.7510064]
[1773158839342,2.68211005,2071.0,2070.0,2.58773405]
[1773158840244,2.68211005,2071.3,2070.4,2.58773405]
[1773158841244,6.315,2071.5,2070.6,2.58773405]
[1773158841446,2.68211005,2071.6,2070.6,2.58773405]
[1773158841646,2.68211005,2071.8,2070.7,2.58773405]
[1773158842545,2.68619295,2071.9,2070.7,2.58773405]
[1773158845456,2.68211005,2071.7,2070.7,2.58773405]
[1773158845651,2.68211005,2071.5,2070.7,2.58773405]
[1773158845853,2.68211005,2071.5,2070.5,8.90273405]
[1773158846055,6.315,2071.4,2070.5,8.90273405]
[1773158846254,2.68211005,2071.3,2070.6,2.58773405]
[1773158846555,2.68211005,2071.3,2070.2,2.58773405]
[1773158847753,2.68211005,2071.1,2070.2,2.58773405]
[1773158849052,2.92346005,2071.1,2069.9,2.58773405]
[1773158850056,2.68211005,2070.9,2069.9,2.58773405]
[1773158853453,2.68211005,2070.7,2069.7,10.03784958]
[1773158853649,2.68211005,2070.7,2069.7,2.58773405]
[1773158854854,8.99811005,2070.9,2069.9,2.58773405]
[1773158855053,2.68211005,2070.9,2069.9,2.58773405]
[1773158856760,2.68211005,2070.9,2069.8,2.58773405]
[1773158857157,2.68211005,2070.9,2069.8,2.82923405]
[1773158857361,2.68211005,2070.9,2069.9,2.58773405]
[1773158860062,2.68211005,2070.9,2069.8,7.45011553]
[1773158860063,2.92349005,2070.9,2069.7,2.58773405]
[1773158861562,2.68211005,2070.7,2069.7,2.58773405]
[1773158863865,6.55738,2070.9,2069.6,13.76950384]
[1773158863866,2.68211005,2070.8,2069.9,2.58773405]
[1773158865665,2.68211005,2070.8,2069.7,2.58773405]
[1773158865960,2.68211005,2070.6,2069.7,2.58773405]
[1773158866664,2.50362088,2070.2,2069.6,0.00338831]
[1773158866867,2.50913916,2070.2,2069.6,0.00338831]
[1773158867272,2.50362088,2070.0,2069.3,2.55297841]
[1773158867465,2.50362088,2070.0,2069.1,7.45011553]
[1773158867466,2.50362088,2070.0,2069.1,10.00309394]
[1773158867663,2.50362088,2070.0,2069.2,2.55297841]
[1773158868264,2.50362088,2070.0,2069.2,2.55758378]
[1773158870070,2.54348878,2070.2,2069.3,2.3728128]
[1773158870465,2.54348878,2070.2,2069.4,2.3728128]
[1773158870868,0.00551828,2070.2,2069.4,2.3728128]
[1773158871276,2.5379705,2070.5,2069.6,2.3728128]